[Event "Titled Tuesday Blitz January 03 Early 2023"]
[White "Topalov, Aleksandar"]
[Black "Goroshkov, Maksym"]
[WhiteFideId "925659"]
[BlackFideId "14142716"]
[WhiteElo "2233"]
[BlackElo "2287"]
[Result "0-1"]
[Round "04"]
[TimeControl "180+2"]
[Date "2023.01.03"]
[WhiteClock "0:00:08"]
[BlackClock "0:00:53"]

1. b3 {[%clk 0:03:00]}  Nf6 {[%clk 0:03:00]} 2. Bb2 {[%clk 0:03:01]}  g6 {[%clk 0:03:00]} 3. Bxf6 {[%clk 0:03:00]}  exf6 {[%clk 0:03:00]} 4. c4 {[%clk 0:03:00]}  Bg7 {[%clk 0:03:00]} 5. Nc3 {[%clk 0:03:01]}  f5 {[%clk 0:03:01]} 6. e3 {[%clk 0:03:01]}  O-O {[%clk 0:03:01]} 7. Nge2 {[%clk 0:03:01]}  c5 {[%clk 0:03:01]} 8. g3 {[%clk 0:03:01]}  Nc6 {[%clk 0:03:01]} 9. Bg2 {[%clk 0:03:01]}  b6 {[%clk 0:03:01]} 10. O-O {[%clk 0:03:00]}  Bb7 {[%clk 0:03:01]} 11. Rb1 {[%clk 0:02:58]}  Rb8 {[%clk 0:02:57]} 12. a3 {[%clk 0:02:57]}  Ne5 {[%clk 0:02:56]} 13. Bxb7 {[%clk 0:02:54]}  Rxb7 {[%clk 0:02:57]} 14. Nf4 {[%clk 0:02:39]}  d6 {[%clk 0:02:53]} 15. Ncd5 {[%clk 0:02:37]}  Re8 {[%clk 0:02:46]} 16. Kg2 {[%clk 0:02:23]}  b5 {[%clk 0:02:42]} 17. Qc2 {[%clk 0:02:15]}  a6 {[%clk 0:02:37]} 18. Ne2 {[%clk 0:02:13]}  Qa8 {[%clk 0:02:34]} 19. d4 {[%clk 0:02:10]}  Nc6 {[%clk 0:02:27]} 20. dxc5 {[%clk 0:02:09]}  dxc5 {[%clk 0:02:28]} 21. Rfd1 {[%clk 0:02:00]}  Reb8 {[%clk 0:02:24]} 22. Nec3 {[%clk 0:01:44]}  b4 {[%clk 0:02:15]} 23. axb4 {[%clk 0:01:43]}  cxb4 {[%clk 0:02:09]} 24. Na4 {[%clk 0:01:37]}  Ne7 {[%clk 0:02:09]} 25. Kg1 {[%clk 0:01:33]}  Nxd5 {[%clk 0:02:05]} 26. Rxd5 {[%clk 0:01:32]}  Rc7 {[%clk 0:02:05]} 27. Rbd1 {[%clk 0:01:31]}  h5 {[%clk 0:02:03]} 28. h4 {[%clk 0:01:29]}  Qc6 {[%clk 0:01:56]} 29. Qd3 {[%clk 0:01:28]}  Kh7 {[%clk 0:01:55]} 30. Rc5 {[%clk 0:01:13]}  Qb7 {[%clk 0:01:51]} 31. Rxc7 {[%clk 0:01:12]}  Qxc7 {[%clk 0:01:52]} 32. Qd7 {[%clk 0:01:10]}  Rb7 {[%clk 0:01:31]} 33. Qxc7 {[%clk 0:01:08]}  Rxc7 {[%clk 0:01:32]} 34. Rd6 {[%clk 0:01:06]}  a5 {[%clk 0:01:23]} 35. Rd5 {[%clk 0:01:05]}  Kg8 {[%clk 0:01:19]} 36. Rxa5 {[%clk 0:01:00]}  Rd7 {[%clk 0:01:20]} 37. Rd5 {[%clk 0:01:00]}  Rxd5 {[%clk 0:01:18]} 38. cxd5 {[%clk 0:00:59]}  Kf8 {[%clk 0:01:19]} 39. Nc5 {[%clk 0:00:47]}  Ke7 {[%clk 0:01:18]} 40. Nb7 {[%clk 0:00:45]}  Kd7 {[%clk 0:01:17]} 41. Kf1 {[%clk 0:00:43]}  Kc7 {[%clk 0:01:15]} 42. Na5 {[%clk 0:00:40]}  Kd6 {[%clk 0:01:15]} 43. Nc6 {[%clk 0:00:40]}  Bc3 {[%clk 0:01:13]} 44. Nd8 {[%clk 0:00:38]}  f6 {[%clk 0:01:07]} 45. Ne6 {[%clk 0:00:30]}  Be5 {[%clk 0:01:07]} 46. Ke2 {[%clk 0:00:20]}  Kxd5 {[%clk 0:01:04]} 47. Nf8 {[%clk 0:00:20]}  g5 {[%clk 0:01:04]} 48. Kd3 {[%clk 0:00:18]}  Bd6 {[%clk 0:01:01]} 49. Nh7 {[%clk 0:00:16]}  gxh4 {[%clk 0:01:00]} 50. gxh4 {[%clk 0:00:12]}  Be7 {[%clk 0:01:01]} 51. f4 {[%clk 0:00:10]}  Ke6 {[%clk 0:00:53]} 52. e4 {[%clk 0:00:10]}  fxe4+ {[%clk 0:00:52]} 53. Kxe4 {[%clk 0:00:10]}  f5+ {[%clk 0:00:52]} 54. Kd4 {[%clk 0:00:08]}  Bxh4 {[%clk 0:00:53]} 55. Kc4 {[%clk 0:00:08]}  Be7 {[%clk 0:00:53]} 0-1


[Site "https://www.chess.com"]

[Event "Titled Tuesday Blitz January 03 Early 2023"]
[White "Dinu, Dumitru-Daniel"]
[Black "Martinez Ramirez, Lennis"]
[WhiteFideId "1208403"]
[BlackFideId "3509079"]
[WhiteElo "2203"]
[BlackElo "2426"]
[Result "0-1"]
[Round "04"]
[TimeControl "180+2"]
[Date "2023.01.03"]
[WhiteClock "0:00:04"]
[BlackClock "0:01:25"]

1. e4 {[%clk 0:03:00]}  c5 {[%clk 0:02:58]} 2. Nf3 {[%clk 0:02:59]}  d6 {[%clk 0:02:59]} 3. d4 {[%clk 0:02:59]}  cxd4 {[%clk 0:03:00]} 4. Nxd4 {[%clk 0:02:59]}  Nf6 {[%clk 0:03:00]} 5. Nc3 {[%clk 0:02:59]}  a6 {[%clk 0:03:01]} 6. f3 {[%clk 0:02:58]}  e5 {[%clk 0:03:00]} 7. Nb3 {[%clk 0:02:58]}  Be6 {[%clk 0:02:56]} 8. Be3 {[%clk 0:02:56]}  h5 {[%clk 0:02:55]} 9. Qd2 {[%clk 0:02:51]}  Nbd7 {[%clk 0:02:55]} 10. O-O-O {[%clk 0:02:48]}  b5 {[%clk 0:02:54]} 11. Nd5 {[%clk 0:02:48]}  Nxd5 {[%clk 0:02:51]} 12. exd5 {[%clk 0:02:48]}  Bf5 {[%clk 0:02:51]} 13. Bd3 {[%clk 0:02:48]}  Bxd3 {[%clk 0:02:51]} 14. Qxd3 {[%clk 0:02:48]}  Rc8 {[%clk 0:02:50]} 15. g4 {[%clk 0:02:45]}  h4 {[%clk 0:02:48]} 16. Rhe1 {[%clk 0:02:37]}  Be7 {[%clk 0:02:48]} 17. f4 {[%clk 0:02:32]}  O-O {[%clk 0:02:42]} 18. Qe4 {[%clk 0:02:17]}  Rc4 {[%clk 0:02:41]} 19. Qf3 {[%clk 0:02:05]}  Qc7 {[%clk 0:02:37]} 20. Re2 {[%clk 0:01:50]}  Rc8 {[%clk 0:02:35]} 21. Rdd2 {[%clk 0:01:32]}  a5 {[%clk 0:02:31]} 22. fxe5 {[%clk 0:01:15]}  Nxe5 {[%clk 0:02:30]} 23. Qf5 {[%clk 0:01:15]}  a4 {[%clk 0:02:29]} 24. Nd4 {[%clk 0:01:12]}  g6 {[%clk 0:02:26]} 25. Qf1 {[%clk 0:01:06]}  a3 {[%clk 0:02:25]} 26. b3 {[%clk 0:01:03]}  Rb4 {[%clk 0:02:22]} 27. Kb1 {[%clk 0:00:32]}  Nxg4 {[%clk 0:02:15]} 28. Nc6 {[%clk 0:00:26]}  Ne5 {[%clk 0:02:04]} 29. Nxb4 {[%clk 0:00:21]}  Qc3 {[%clk 0:02:02]} 30. Bd4 {[%clk 0:00:15]}  Qxb4 {[%clk 0:02:00]} 31. c3 {[%clk 0:00:13]}  Rxc3 {[%clk 0:01:55]} 32. Bxc3 {[%clk 0:00:13]}  Qxc3 {[%clk 0:01:56]} 33. Qc1 {[%clk 0:00:13]}  Qb4 {[%clk 0:01:55]} 34. Qc2 {[%clk 0:00:11]}  Bf6 {[%clk 0:01:54]} 35. Re4 {[%clk 0:00:11]}  Qa5 {[%clk 0:01:49]} 36. Rf2 {[%clk 0:00:10]}  Bg5 {[%clk 0:01:40]} 37. Qc8+ {[%clk 0:00:09]}  Kg7 {[%clk 0:01:40]} 38. Qc2 {[%clk 0:00:09]}  Qb6 {[%clk 0:01:38]} 39. Rfe2 {[%clk 0:00:08]}  Qg1+ {[%clk 0:01:37]} 40. Re1 {[%clk 0:00:08]}  Qb6 {[%clk 0:01:35]} 41. Qc3 {[%clk 0:00:07]}  b4 {[%clk 0:01:35]} 42. Qd4 {[%clk 0:00:06]}  Qb5 {[%clk 0:01:33]} 43. R4e2 {[%clk 0:00:04]}  Bf6 {[%clk 0:01:32]} 44. Qe4 {[%clk 0:00:03]}  Nd3 {[%clk 0:01:31]} 45. Rd2 {[%clk 0:00:03]}  Nxe1 {[%clk 0:01:31]} 46. Qxe1 {[%clk 0:00:03]}  Qc5 {[%clk 0:01:31]} 47. Rc2 {[%clk 0:00:03]}  Qd4 {[%clk 0:01:31]} 48. Kc1 {[%clk 0:00:03]}  Qa1+ {[%clk 0:01:30]} 49. Kd2 {[%clk 0:00:04]}  Bc3+ {[%clk 0:01:30]} 50. Rxc3 {[%clk 0:00:04]}  bxc3+ {[%clk 0:01:27]} 51. Ke2 {[%clk 0:00:05]}  Qxa2+ {[%clk 0:01:27]} 52. Kd3 {[%clk 0:00:04]}  Qd2+ {[%clk 0:01:25]} 0-1


[Site "https://www.chess.com"]

[Event "Titled Tuesday Blitz January 03 Early 2023"]
[White "Melian, Juan Sebastian"]
[Black "Gatterer, Florian"]
[WhiteFideId "3706575"]
[BlackFideId "811688"]
[WhiteElo "2293"]
[BlackElo "2170"]
[Result "0-1"]
[Round "04"]
[TimeControl "180+2"]
[Date "2023.01.03"]
[WhiteClock "0:00:55"]
[BlackClock "0:01:05"]

1. d4 {[%clk 0:03:00]}  Nf6 {[%clk 0:02:59]} 2. c4 {[%clk 0:03:00]}  g6 {[%clk 0:03:00]} 3. Nc3 {[%clk 0:03:00]}  d5 {[%clk 0:03:00]} 4. e3 {[%clk 0:02:54]}  Bg7 {[%clk 0:02:57]} 5. Qb3 {[%clk 0:02:53]}  dxc4 {[%clk 0:02:51]} 6. Bxc4 {[%clk 0:02:53]}  O-O {[%clk 0:02:51]} 7. Nf3 {[%clk 0:02:52]}  c5 {[%clk 0:02:51]} 8. O-O {[%clk 0:02:50]}  Nc6 {[%clk 0:02:49]} 9. dxc5 {[%clk 0:02:27]}  Na5 {[%clk 0:02:47]} 10. Qb4 {[%clk 0:02:21]}  Nxc4 {[%clk 0:02:45]} 11. Qxc4 {[%clk 0:02:22]}  Be6 {[%clk 0:02:45]} 12. Qb4 {[%clk 0:02:16]}  Nd5 {[%clk 0:02:33]} 13. Nxd5 {[%clk 0:02:14]}  Qxd5 {[%clk 0:02:34]} 14. e4 {[%clk 0:02:07]}  Qh5 {[%clk 0:02:16]} 15. Be3 {[%clk 0:02:05]}  Bg4 {[%clk 0:02:05]} 16. Nd2 {[%clk 0:01:53]}  Rad8 {[%clk 0:01:44]} 17. f3 {[%clk 0:01:42]}  Be6 {[%clk 0:01:39]} 18. Rfd1 {[%clk 0:01:39]}  a5 {[%clk 0:01:26]} 19. Qa3 {[%clk 0:01:25]}  Be5 {[%clk 0:01:21]} 20. Nf1 {[%clk 0:01:24]}  Bc4 {[%clk 0:01:17]} 21. f4 {[%clk 0:00:55]}  Rxd1 {[%clk 0:01:05]} 0-1


[Site "https://www.chess.com"]

[Event "Titled Tuesday Blitz January 03 Early 2023"]
[White "gshwbedhkhd"]
[Black "Ovezdurdyyeva, Jemal"]
[BlackFideId "14001888"]
[WhiteElo "2529"]
[BlackElo "2078"]
[Result "0-1"]
[Round "04"]
[TimeControl "180+2"]
[Date "2023.01.03"]
[WhiteClock "0:00:34"]
[BlackClock "0:00:53"]

1. e4 {[%clk 0:03:00]}  d6 {[%clk 0:02:59]} 2. d4 {[%clk 0:03:00]}  Nf6 {[%clk 0:02:59]} 3. Nc3 {[%clk 0:03:00]}  g6 {[%clk 0:02:59]} 4. Nf3 {[%clk 0:02:55]}  c6 {[%clk 0:02:59]} 5. Bd3 {[%clk 0:02:53]}  b5 {[%clk 0:02:58]} 6. a4 {[%clk 0:02:52]}  b4 {[%clk 0:02:57]} 7. Ne2 {[%clk 0:02:53]}  Bg7 {[%clk 0:02:57]} 8. c3 {[%clk 0:02:53]}  bxc3 {[%clk 0:02:53]} 9. bxc3 {[%clk 0:02:54]}  O-O {[%clk 0:02:53]} 10. O-O {[%clk 0:02:53]}  Nbd7 {[%clk 0:02:53]} 11. Ba3 {[%clk 0:02:49]}  c5 {[%clk 0:02:48]} 12. e5 {[%clk 0:02:28]}  dxe5 {[%clk 0:02:25]} 13. dxe5 {[%clk 0:02:29]}  Ng4 {[%clk 0:02:24]} 14. e6 {[%clk 0:02:26]}  fxe6 {[%clk 0:02:24]} 15. Bc4 {[%clk 0:02:25]}  Nde5 {[%clk 0:02:22]} 16. Nxe5 {[%clk 0:02:22]}  Nxe5 {[%clk 0:02:21]} 17. Ba2 {[%clk 0:02:20]}  Qc7 {[%clk 0:02:08]} 18. Ng3 {[%clk 0:02:12]}  c4 {[%clk 0:02:03]} 19. Qe2 {[%clk 0:01:53]}  Bb7 {[%clk 0:01:58]} 20. f4 {[%clk 0:01:31]}  Nd3 {[%clk 0:01:39]} 21. Qxe6+ {[%clk 0:01:29]}  Kh8 {[%clk 0:01:39]} 22. Bxc4 {[%clk 0:01:07]}  Nxf4 {[%clk 0:01:36]} 23. Qxe7 {[%clk 0:01:06]}  Qc6 {[%clk 0:01:18]} 24. Rf2 {[%clk 0:00:43]}  Nh3+ {[%clk 0:00:53]} 25. gxh3 {[%clk 0:00:36]}  Rxf2 {[%clk 0:00:54]} 26. Kxf2 {[%clk 0:00:36]}  Qf3+ {[%clk 0:00:54]} 27. Ke1 {[%clk 0:00:34]}  Bxc3# {[%clk 0:00:53]} 0-1


[Site "https://www.chess.com"]

[Event "Titled Tuesday Blitz January 03 Early 2023"]
[White "Lacasa Diaz, Jose Antonio"]
[Black "Ezat, Mohamed"]
[WhiteFideId "2203375"]
[BlackFideId "10600906"]
[WhiteElo "2359"]
[BlackElo "2402"]
[Result "1-0"]
[Round "04"]
[TimeControl "180+2"]
[Date "2023.01.03"]
[WhiteClock "0:00:40"]
[BlackClock "0:00:01"]

1. e4 {[%clk 0:03:00]}  Nf6 {[%clk 0:02:57]} 2. e5 {[%clk 0:02:59]}  Nd5 {[%clk 0:02:57]} 3. d4 {[%clk 0:02:59]}  d6 {[%clk 0:02:58]} 4. Nf3 {[%clk 0:02:59]}  Bg4 {[%clk 0:02:57]} 5. Be2 {[%clk 0:02:59]}  e6 {[%clk 0:02:54]} 6. O-O {[%clk 0:02:58]}  Be7 {[%clk 0:02:51]} 7. c4 {[%clk 0:02:55]}  Nb6 {[%clk 0:02:50]} 8. h3 {[%clk 0:02:55]}  Bh5 {[%clk 0:02:48]} 9. Nc3 {[%clk 0:02:53]}  O-O {[%clk 0:02:47]} 10. Be3 {[%clk 0:02:52]}  Nc6 {[%clk 0:02:29]} 11. exd6 {[%clk 0:02:26]}  cxd6 {[%clk 0:02:29]} 12. b3 {[%clk 0:02:15]}  d5 {[%clk 0:02:22]} 13. c5 {[%clk 0:02:10]}  Nc8 {[%clk 0:02:18]} 14. b4 {[%clk 0:02:10]}  a6 {[%clk 0:02:09]} 15. Rb1 {[%clk 0:02:09]}  Bxf3 {[%clk 0:02:01]} 16. Bxf3 {[%clk 0:02:09]}  Bf6 {[%clk 0:02:01]} 17. a4 {[%clk 0:02:02]}  N8e7 {[%clk 0:02:01]} 18. b5 {[%clk 0:01:56]}  axb5 {[%clk 0:02:00]} 19. axb5 {[%clk 0:01:56]}  Na5 {[%clk 0:02:01]} 20. Be2 {[%clk 0:01:54]}  Nf5 {[%clk 0:02:00]} 21. b6 {[%clk 0:01:45]}  Nc6 {[%clk 0:01:56]} 22. Nb5 {[%clk 0:01:43]}  Ra2 {[%clk 0:01:42]} 23. Bg4 {[%clk 0:01:43]}  Nxe3 {[%clk 0:01:31]} 24. fxe3 {[%clk 0:01:43]}  Bg5 {[%clk 0:01:32]} 25. Qb3 {[%clk 0:01:35]}  Ra8 {[%clk 0:01:21]} 26. Nc7 {[%clk 0:01:28]}  Na5 {[%clk 0:01:00]} 27. Qc3 {[%clk 0:01:24]}  Nc4 {[%clk 0:00:57]} 28. Nxa8 {[%clk 0:01:20]}  Bxe3+ {[%clk 0:00:52]} 29. Kh1 {[%clk 0:01:20]}  Qxa8 {[%clk 0:00:47]} 30. Be2 {[%clk 0:01:11]}  Qa5 {[%clk 0:00:36]} 31. Qxa5 {[%clk 0:00:55]}  Nxa5 {[%clk 0:00:36]} 32. Rb4 {[%clk 0:00:55]}  Nc6 {[%clk 0:00:35]} 33. Ra4 {[%clk 0:00:53]}  Nxd4 {[%clk 0:00:26]} 34. Bd3 {[%clk 0:00:46]}  Nc6 {[%clk 0:00:22]} 35. Bb5 {[%clk 0:00:44]}  Ne5 {[%clk 0:00:19]} 36. c6 {[%clk 0:00:43]}  bxc6 {[%clk 0:00:13]} 37. b7 {[%clk 0:00:42]}  cxb5 {[%clk 0:00:10]} 38. Ra8 {[%clk 0:00:43]}  Nd7 {[%clk 0:00:01]} 39. Rxf8+ {[%clk 0:00:40]} 1-0


[Site "https://www.chess.com"]

[Event "Titled Tuesday Blitz January 03 Early 2023"]
[White "Gutkin, Ilya"]
[Black "Cella, Glaucio Dalla Cortt"]
[WhiteFideId "16203470"]
[BlackFideId "2119455"]
[WhiteElo "2273"]
[BlackElo "1894"]
[Result "0-1"]
[Round "04"]
[TimeControl "180+2"]
[Date "2023.01.03"]
[WhiteClock "0:00:08"]
[BlackClock "0:01:23"]

1. Nf3 {[%clk 0:03:00]}  c5 {[%clk 0:02:57]} 2. b3 {[%clk 0:03:00]}  Nc6 {[%clk 0:02:56]} 3. Bb2 {[%clk 0:03:00]}  e6 {[%clk 0:02:54]} 4. c4 {[%clk 0:02:59]}  Nf6 {[%clk 0:02:52]} 5. g3 {[%clk 0:02:58]}  d5 {[%clk 0:02:51]} 6. cxd5 {[%clk 0:02:58]}  exd5 {[%clk 0:02:50]} 7. d4 {[%clk 0:02:58]}  cxd4 {[%clk 0:02:41]} 8. Nxd4 {[%clk 0:02:57]}  Bb4+ {[%clk 0:02:41]} 9. Bc3 {[%clk 0:02:56]}  Qb6 {[%clk 0:02:36]} 10. Nxc6 {[%clk 0:02:51]}  bxc6 {[%clk 0:02:37]} 11. Bg2 {[%clk 0:02:44]}  O-O {[%clk 0:02:31]} 12. O-O {[%clk 0:02:42]}  Bxc3 {[%clk 0:02:19]} 13. Nxc3 {[%clk 0:02:41]}  Bf5 {[%clk 0:02:20]} 14. Na4 {[%clk 0:02:30]}  Qc7 {[%clk 0:02:20]} 15. Rc1 {[%clk 0:02:21]}  Rad8 {[%clk 0:02:20]} 16. Qd4 {[%clk 0:02:19]}  Rfe8 {[%clk 0:02:17]} 17. e3 {[%clk 0:02:19]}  Re6 {[%clk 0:02:15]} 18. Rfd1 {[%clk 0:02:11]}  a5 {[%clk 0:02:06]} 19. Qf4 {[%clk 0:02:09]}  Qxf4 {[%clk 0:02:02]} 20. gxf4 {[%clk 0:02:10]}  Nd7 {[%clk 0:02:03]} 21. Rd4 {[%clk 0:02:00]}  Rg6 {[%clk 0:01:57]} 22. Kf1 {[%clk 0:01:58]}  Rb8 {[%clk 0:01:57]} 23. Nc5 {[%clk 0:01:52]}  Rb4 {[%clk 0:01:36]} 24. Rd2 {[%clk 0:00:29]}  Rd6 {[%clk 0:01:34]} 25. e4 {[%clk 0:00:23]}  Nxc5 {[%clk 0:01:30]} 26. e5 {[%clk 0:00:15]}  Nd3 {[%clk 0:01:28]} 27. exd6 {[%clk 0:00:11]}  Nxc1 {[%clk 0:01:27]} 28. Rc2 {[%clk 0:00:08]}  Bxc2 {[%clk 0:01:23]} 0-1


[Site "https://www.chess.com"]

[Event "Titled Tuesday Blitz January 03 Early 2023"]
[White "Dardha, Arben"]
[Black "Murtazin, Ruslan"]
[WhiteFideId "4700481"]
[BlackFideId "24175960"]
[WhiteElo "2262"]
[BlackElo "2247"]
[Result "0-1"]
[Round "04"]
[TimeControl "180+2"]
[Date "2023.01.03"]
[WhiteClock "0:00:07"]
[BlackClock "0:00:15"]

1. e4 {[%clk 0:02:36]}  e6 {[%clk 0:02:57]} 2. d4 {[%clk 0:02:36]}  d5 {[%clk 0:02:58]} 3. Nd2 {[%clk 0:02:35]}  Be7 {[%clk 0:02:58]} 4. Bd3 {[%clk 0:02:33]}  c5 {[%clk 0:02:54]} 5. exd5 {[%clk 0:02:32]}  Qxd5 {[%clk 0:02:49]} 6. Ngf3 {[%clk 0:02:32]}  cxd4 {[%clk 0:02:48]} 7. Bc4 {[%clk 0:02:31]}  Qd6 {[%clk 0:02:46]} 8. O-O {[%clk 0:02:28]}  Nf6 {[%clk 0:02:45]} 9. Nb3 {[%clk 0:02:27]}  Nc6 {[%clk 0:02:45]} 10. Nbxd4 {[%clk 0:02:26]}  Nxd4 {[%clk 0:02:46]} 11. Qxd4 {[%clk 0:02:26]}  Qxd4 {[%clk 0:02:43]} 12. Nxd4 {[%clk 0:02:27]}  a6 {[%clk 0:02:44]} 13. Bf4 {[%clk 0:02:25]}  O-O {[%clk 0:02:34]} 14. Rfe1 {[%clk 0:02:25]}  Rd8 {[%clk 0:02:34]} 15. c3 {[%clk 0:02:14]}  b5 {[%clk 0:02:31]} 16. Bb3 {[%clk 0:02:09]}  Bb7 {[%clk 0:02:31]} 17. Rad1 {[%clk 0:01:48]}  h6 {[%clk 0:02:26]} 18. h3 {[%clk 0:01:33]}  Bc5 {[%clk 0:02:13]} 19. Nf3 {[%clk 0:01:17]}  a5 {[%clk 0:01:59]} 20. Bc7 {[%clk 0:01:15]}  Rxd1 {[%clk 0:01:57]} 21. Rxd1 {[%clk 0:01:15]}  a4 {[%clk 0:01:54]} 22. Bc2 {[%clk 0:01:15]}  Bd5 {[%clk 0:01:50]} 23. a3 {[%clk 0:01:11]}  Rc8 {[%clk 0:01:47]} 24. Be5 {[%clk 0:01:08]}  Bxf3 {[%clk 0:01:44]} 25. gxf3 {[%clk 0:01:07]}  Nd5 {[%clk 0:01:44]} 26. Be4 {[%clk 0:00:57]}  Nb6 {[%clk 0:01:41]} 27. Bb7 {[%clk 0:00:43]}  Rf8 {[%clk 0:01:34]} 28. Bc6 {[%clk 0:00:30]}  Nc4 {[%clk 0:01:34]} 29. Bd4 {[%clk 0:00:27]}  Bxd4 {[%clk 0:01:30]} 30. Rxd4 {[%clk 0:00:25]}  Rb8 {[%clk 0:01:26]} 31. Bxb5 {[%clk 0:00:24]}  Nxb2 {[%clk 0:01:21]} 32. Rb4 {[%clk 0:00:22]}  Nd1 {[%clk 0:00:55]} 33. Bxa4 {[%clk 0:00:23]}  Rd8 {[%clk 0:00:48]} 34. Rd4 {[%clk 0:00:22]}  Rxd4 {[%clk 0:00:43]} 35. cxd4 {[%clk 0:00:23]}  Nc3 {[%clk 0:00:42]} 36. Bc6 {[%clk 0:00:24]}  Ne2+ {[%clk 0:00:41]} 37. Kf1 {[%clk 0:00:24]}  Nxd4 {[%clk 0:00:42]} 38. Bd7 {[%clk 0:00:24]}  Kf8 {[%clk 0:00:42]} 39. a4 {[%clk 0:00:24]}  Ke7 {[%clk 0:00:42]} 40. Bc8 {[%clk 0:00:23]}  Kd6 {[%clk 0:00:35]} 41. f4 {[%clk 0:00:23]}  Kc5 {[%clk 0:00:31]} 42. Ke1 {[%clk 0:00:23]}  Kb4 {[%clk 0:00:30]} 43. Bd7 {[%clk 0:00:23]}  Nb3 {[%clk 0:00:29]} 44. Be8 {[%clk 0:00:19]}  f6 {[%clk 0:00:29]} 45. Bf7 {[%clk 0:00:19]}  Nc5 {[%clk 0:00:29]} 46. Kd2 {[%clk 0:00:15]}  Kxa4 {[%clk 0:00:27]} 47. Kc3 {[%clk 0:00:16]}  Kb5 {[%clk 0:00:27]} 48. Be8+ {[%clk 0:00:14]}  Kb6 {[%clk 0:00:27]} 49. Kd4 {[%clk 0:00:14]}  Nb7 {[%clk 0:00:22]} 50. Bf7 {[%clk 0:00:13]}  Nd8 {[%clk 0:00:22]} 51. Be8 {[%clk 0:00:12]}  Kc7 {[%clk 0:00:21]} 52. Kc5 {[%clk 0:00:11]}  Nb7+ {[%clk 0:00:21]} 53. Kd4 {[%clk 0:00:11]}  Kd6 {[%clk 0:00:21]} 54. h4 {[%clk 0:00:11]}  Nc5 {[%clk 0:00:19]} 55. Bg6 {[%clk 0:00:09]}  f5 {[%clk 0:00:17]} 56. h5 {[%clk 0:00:08]}  Nd7 {[%clk 0:00:17]} 57. Bf7 {[%clk 0:00:07]}  Nf6 {[%clk 0:00:16]} 58. Ke3 {[%clk 0:00:07]}  Nd5+ {[%clk 0:00:16]} 59. Kf3 {[%clk 0:00:06]}  Nc7 {[%clk 0:00:15]} 60. Ke3 {[%clk 0:00:06]}  Ke7 {[%clk 0:00:14]} 61. Bg6 {[%clk 0:00:06]}  Kd6 {[%clk 0:00:11]} 62. Kd4 {[%clk 0:00:06]}  Nd5 {[%clk 0:00:10]} 63. Bf7 {[%clk 0:00:06]}  Nxf4 {[%clk 0:00:10]} 64. Ke3 {[%clk 0:00:05]}  Ke5 {[%clk 0:00:09]} 65. f3 {[%clk 0:00:05]}  Nd5+ {[%clk 0:00:09]} 66. Kf2 {[%clk 0:00:05]}  Nc7 {[%clk 0:00:09]} 67. Ke3 {[%clk 0:00:05]}  Kf6 {[%clk 0:00:09]} 68. Bg6 {[%clk 0:00:04]}  e5 {[%clk 0:00:10]} 69. f4 {[%clk 0:00:04]}  Nd5+ {[%clk 0:00:10]} 70. Kf3 {[%clk 0:00:04]}  Nxf4 {[%clk 0:00:10]} 71. Be8 {[%clk 0:00:05]}  Kg5 {[%clk 0:00:10]} 72. Bd7 {[%clk 0:00:05]}  Nxh5 {[%clk 0:00:11]} 73. Kg2 {[%clk 0:00:05]}  e4 {[%clk 0:00:10]} 74. Kh3 {[%clk 0:00:05]}  Nf6 {[%clk 0:00:10]} 75. Kg3 {[%clk 0:00:05]}  f4+ {[%clk 0:00:11]} 76. Kh3 {[%clk 0:00:05]}  Nxd7 {[%clk 0:00:12]} 77. Kg2 {[%clk 0:00:05]}  Ne5 {[%clk 0:00:12]} 78. Kh3 {[%clk 0:00:06]}  f3 {[%clk 0:00:13]} 79. Kg3 {[%clk 0:00:06]}  e3 {[%clk 0:00:13]} 80. Kh3 {[%clk 0:00:06]}  e2 {[%clk 0:00:14]} 81. Kg3 {[%clk 0:00:06]}  e1=Q+ {[%clk 0:00:15]} 82. Kh3 {[%clk 0:00:07]}  Qh1+ {[%clk 0:00:14]} 83. Kg3 {[%clk 0:00:07]}  Qg2# {[%clk 0:00:15]} 0-1


[Site "https://www.chess.com"]

[Event "Titled Tuesday Blitz January 03 Early 2023"]
[White "Babikov, Ivan"]
[Black "Berezin, Viktor"]
[WhiteFideId "4161106"]
[BlackFideId "14107872"]
[WhiteElo "2239"]
[BlackElo "2307"]
[Result "1-0"]
[Round "04"]
[TimeControl "180+2"]
[Date "2023.01.03"]
[WhiteClock "0:00:03"]
[BlackClock "0:00:02"]

1. d4 {[%clk 0:03:00]}  Nf6 {[%clk 0:02:58]} 2. Nf3 {[%clk 0:03:00]}  g6 {[%clk 0:02:55]} 3. c4 {[%clk 0:02:56]}  Bg7 {[%clk 0:02:55]} 4. g3 {[%clk 0:02:55]}  O-O {[%clk 0:02:55]} 5. Bg2 {[%clk 0:02:55]}  d6 {[%clk 0:02:56]} 6. O-O {[%clk 0:02:51]}  Nc6 {[%clk 0:02:56]} 7. b3 {[%clk 0:02:47]}  a6 {[%clk 0:02:56]} 8. Bb2 {[%clk 0:02:47]}  Rb8 {[%clk 0:02:57]} 9. Nbd2 {[%clk 0:02:44]}  b5 {[%clk 0:02:57]} 10. Rc1 {[%clk 0:02:44]}  bxc4 {[%clk 0:02:56]} 11. Nxc4 {[%clk 0:02:42]}  a5 {[%clk 0:02:42]} 12. d5 {[%clk 0:02:42]}  Nb4 {[%clk 0:02:41]} 13. a3 {[%clk 0:02:15]}  Nbxd5 {[%clk 0:02:39]} 14. Nxa5 {[%clk 0:02:15]}  Bd7 {[%clk 0:02:30]} 15. Nd4 {[%clk 0:02:05]}  Ra8 {[%clk 0:02:08]} 16. Ndc6 {[%clk 0:01:56]}  Qe8 {[%clk 0:01:22]} 17. Bxd5 {[%clk 0:01:51]}  e6 {[%clk 0:01:17]} 18. Bg2 {[%clk 0:01:45]}  d5 {[%clk 0:01:17]} 19. b4 {[%clk 0:01:35]}  Kh8 {[%clk 0:01:15]} 20. Ne5 {[%clk 0:01:31]}  Ba4 {[%clk 0:01:13]} 21. Qd2 {[%clk 0:01:26]}  Rc8 {[%clk 0:01:13]} 22. Nec6 {[%clk 0:01:22]}  h5 {[%clk 0:01:07]} 23. h4 {[%clk 0:01:20]}  Kh7 {[%clk 0:01:07]} 24. Qg5 {[%clk 0:01:15]}  Ne4 {[%clk 0:00:58]} 25. Bxe4 {[%clk 0:01:06]}  Bxb2 {[%clk 0:00:58]} 26. Rb1 {[%clk 0:00:45]}  Bg7 {[%clk 0:00:57]} 27. Bd3 {[%clk 0:00:36]}  Bxc6 {[%clk 0:00:57]} 28. Qxh5+ {[%clk 0:00:35]}  Kg8 {[%clk 0:00:57]} 29. Qg5 {[%clk 0:00:31]}  e5 {[%clk 0:00:52]} 30. Rfc1 {[%clk 0:00:28]}  Bd7 {[%clk 0:00:49]} 31. Ba6 {[%clk 0:00:25]}  Ra8 {[%clk 0:00:46]} 32. Bb7 {[%clk 0:00:24]}  Rb8 {[%clk 0:00:44]} 33. Rxc7 {[%clk 0:00:22]}  Bf5 {[%clk 0:00:41]} 34. Rbc1 {[%clk 0:00:20]}  d4 {[%clk 0:00:39]} 35. Qe7 {[%clk 0:00:18]}  Qb5 {[%clk 0:00:38]} 36. Bf3 {[%clk 0:00:09]}  d3 {[%clk 0:00:34]} 37. exd3 {[%clk 0:00:09]}  Qxd3 {[%clk 0:00:33]} 38. R7c3 {[%clk 0:00:09]}  Qd2 {[%clk 0:00:30]} 39. R1c2 {[%clk 0:00:08]}  Bxc2 {[%clk 0:00:30]} 40. Rc7 {[%clk 0:00:07]}  Bf5 {[%clk 0:00:24]} 41. Nc6 {[%clk 0:00:07]}  Rbe8 {[%clk 0:00:22]} 42. Qc5 {[%clk 0:00:07]}  e4 {[%clk 0:00:07]} 43. Bg2 {[%clk 0:00:08]}  e3 {[%clk 0:00:07]} 44. fxe3 {[%clk 0:00:07]}  Qxe3+ {[%clk 0:00:08]} 45. Qxe3 {[%clk 0:00:07]}  Rxe3 {[%clk 0:00:09]} 46. b5 {[%clk 0:00:07]}  Rxa3 {[%clk 0:00:08]} 47. b6 {[%clk 0:00:07]}  Rb3 {[%clk 0:00:09]} 48. b7 {[%clk 0:00:08]}  Be5 {[%clk 0:00:05]} 49. Ne7+ {[%clk 0:00:06]}  Kg7 {[%clk 0:00:04]} 50. Nxf5+ {[%clk 0:00:06]}  gxf5 {[%clk 0:00:04]} 51. Rc8 {[%clk 0:00:06]}  Bb8 {[%clk 0:00:03]} 52. Bd5 {[%clk 0:00:04]}  Bd6 {[%clk 0:00:02]} 53. Bxb3 {[%clk 0:00:03]} 1-0


[Site "https://www.chess.com"]